fUST/lending_fUST_20250603
["ID","MTS","AMOUNT","RATE_DAILY","PERIOD"]
[363881397,1748907058216,-518.90475313,0.00021918,2]
[363881398,1748907058226,-495.98369487,0.00021918,2]
[363881399,1748907058236,-223.0315306,0.00021929,2]
[363881400,1748907058246,-551.13,0.00022,14]
[363881401,1748907058257,-551.1063,0.00022,14]
[363881402,1748907058266,-76143.37168268,0.00022,2]
[363881403,1748907058276,-97593.71685147,0.00022,7]
[363881404,1748907058286,-151.0,0.00022,7]
[363881405,1748907058295,-151.0,0.00022,7]
[363881406,1748907058305,-151.0,0.00022,7]
[363881407,1748907058316,-151.941526,0.00022,7]
[363881408,1748907058325,-151.0,0.00022,7]
[363881409,1748907058336,-153.374833,0.00022,7]
[363881410,1748907058345,-500.0,0.00022,2]
[363881411,1748907058355,-151.0,0.00022,7]
[363881412,1748907058366,-500.0,0.00022,2]
[363881413,1748907058376,-151.0,0.00022,7]
[363881414,1748907058385,-163.04634,0.00022,7]
[363881415,1748907058396,-151.0,0.00022,7]
[363881416,1748907058406,-163.04634,0.00022,7]
[363881417,1748907058415,-151.0,0.00022,7]
[363881418,1748907058425,-158.046558,0.00022,7]
[363881419,1748907058435,-151.0,0.00022,7]
[363881420,1748907058444,-151.0,0.00022,7]
[363881421,1748907058453,-151.0,0.00022,7]
[363881422,1748907058463,-165.870742,0.00022,7]
[363881423,1748907058472,-755.772561,0.00022,2]
[363881424,1748907058483,-755.772561,0.00022,2]
[363881425,1748907058492,-151.0,0.00022,7]
[363881426,1748907058503,-151.0,0.00022,7]
[363881427,1748907058513,-151.0,0.00022,7]
[363881428,1748907058522,-151.0,0.00022,7]
[363881429,1748907058533,-151.0,0.00022,7]
[363881430,1748907058543,-151.0,0.00022,7]
[363881431,1748907058554,-151.0,0.00022,7]
[363881432,1748907058563,-151.0,0.00022,7]
[363881433,1748907058573,-224.967987,0.00022,7]
[363881434,1748907058583,-224.967987,0.00022,7]
[363881435,1748907058593,-224.967987,0.00022,7]
[363881436,1748907058603,-224.967987,0.00022,7]
[363881437,1748907058613,-704.475619,0.00022,7]
[363881438,1748907058622,-704.475619,0.00022,7]
[363881439,1748907058632,-704.475619,0.00022,7]
[363881440,1748907058641,-704.475619,0.00022,7]
[363881441,1748907058650,-151.0,0.00022,7]
[363881442,1748907058660,-561.643759,0.00022,7]
[363881443,1748907058669,-561.643759,0.00022,7]
[363881444,1748907058678,-561.643759,0.00022,7]
[363881445,1748907058688,-561.643759,0.00022,7]
[363881446,1748907058698,-151.0,0.00022,7]
[363881447,1748907058707,-151.0,0.00022,7]
[363881448,1748907058716,-168.789138,0.00022,2]
[363881449,1748907058726,-168.789138,0.00022,2]
[363881450,1748907058735,-151.0,0.00022,7]
[363881451,1748907058744,-151.0,0.00022,7]
[363881452,1748907058753,-151.0,0.00022,7]
[363881453,1748907058763,-151.0,0.00022,7]
[363881454,1748907058772,-151.0,0.00022,7]
[363881455,1748907058781,-207.8674,0.00022,7]
[363881456,1748907058791,-207.8674,0.00022,7]
[363881457,1748907058800,-151.0,0.00022,7]
[363881458,1748907058810,-206.847821,0.00022,7]
[363881459,1748907058824,-206.847821,0.00022,7]
[363881460,1748907058835,-369.208876,0.00022,7]
[363881461,1748907058845,-369.208876,0.00022,7]
[363881462,1748907058855,-412.842266,0.00022,7]
[363881463,1748907058864,-151.0,0.00022,7]
[363881464,1748907058874,-412.842266,0.00022,7]
[363881465,1748907058884,-472.990524,0.00022,7]
[363881466,1748907058894,-472.990524,0.00022,7]
[363881467,1748907058904,-286.129156,0.00022,7]
[363881468,1748907058914,-286.129156,0.00022,7]
[363881469,1748907058923,-373.158915,0.00022,7]
[363881470,1748907058933,-373.158915,0.00022,7]
[363881471,1748907058942,-171.0,0.00022,2]
[363881472,1748907058952,-151.0,0.00022,7]
[363881473,1748907058961,-1091.7,0.00022001,4]
[363881474,1748907058971,-708.0,0.00022036,2]
[363881475,1748907058981,-2226.0,0.00022036,2]
[363881476,1748907058991,-405.0,0.00022036,2]
[363881477,1748907059001,-962.0,0.00022036,2]
[363881478,1748907059010,-935.32117229,0.00022038,6]
[363881479,1748907059019,-151.0,0.00022044,22]
[363881480,1748907059028,-1000.0,0.000221,2]
[363881481,1748907059039,-1091.7,0.00022101,4]
[363881482,1748907059048,-5094.70234244,0.0002211,2]
[363881483,1748907059057,-2400.0,0.00022147,2]
[363881484,1748907059070,-1000.0,0.00022156,2]
[363881485,1748907059080,-151.0,0.00022156,7]
[363881486,1748907059089,-151.0,0.00022156,7]
[363881487,1748907059098,-151.0,0.00022156,7]
[363881488,1748907059107,-151.0,0.00022156,7]
[363881489,1748907059117,-206.847821,0.00022156,7]
[363881490,1748907059127,-206.847821,0.00022156,7]
[363881491,1748907059136,-392.75926656,0.00022178,3]
[363881492,1748907059145,-207.8674,0.00022178,7]
[363881493,1748907059155,-207.8674,0.00022178,7]
[363881494,1748907059165,-412.842266,0.00022178,7]
[363881495,1748907059175,-151.0,0.00022178,7]
[363881496,1748907059186,-412.842266,0.00022178,7]
[363881497,1748907059196,-151.0,0.00022191,7]
[363881498,1748907059206,-151.0,0.00022191,7]
[363881499,1748907059216,-151.0,0.00022191,7]
[363881500,1748907059225,-755.772561,0.00022191,2]
[363881501,1748907059235,-755.772561,0.00022191,2]
[363881502,1748907059247,-151.0,0.00022191,7]
[363881503,1748907059256,-151.0,0.00022191,7]
[363881504,1748907059266,-213.432235,0.00022191,7]
[363881505,1748907059276,-1240.54,0.00022191,2]
[363881506,1748907059288,-369.208876,0.00022191,7]
[363881507,1748907059299,-369.208876,0.00022191,7]
[363881508,1748907059309,-2050.09,0.00022191,2]
[363881509,1748907059321,-1442.81,0.00022191,2]
[363881510,1748907059331,-1440.95,0.00022191,2]
[363881511,1748907059340,-2167.57,0.00022191,2]
[363881512,1748907059350,-2580.32,0.00022191,2]
[363881513,1748907059360,-1026.87,0.00022191,2]
[363881514,1748907059370,-565.49,0.00022191,2]
[363881515,1748907059380,-802.81,0.00022191,2]
[363881516,1748907059390,-675.33,0.00022191,2]
[363881517,1748907059400,-317.38,0.00022191,2]
[363881518,1748907059409,-504.7,0.00022191,2]
[363881519,1748907059419,-3944.08,0.00022191,2]
[363881520,1748907059429,-472.990524,0.00022191,7]
[363881521,1748907059439,-472.990524,0.00022191,7]
[363881522,1748907059449,-1686.91,0.00022191,2]
[363881523,1748907059459,-2043.01,0.00022191,2]
[363881524,1748907059469,-754.71,0.00022191,2]
[363881525,1748907059478,-797.96,0.00022191,2]
[363881526,1748907059488,-735.8,0.00022191,2]
[363881527,1748907059498,-4845.58,0.00022191,2]
[363881528,1748907059508,-854.6,0.00022191,2]
[363881529,1748907059517,-1199.73,0.00022191,2]
[363881530,1748907059529,-286.129156,0.00022191,7]
[363881531,1748907059545,-440.0,0.00022191,2]
[363881532,1748907059555,-440.0,0.00022191,2]
[363881533,1748907059566,-286.129156,0.00022191,7]
[363881534,1748907059578,-373.158915,0.00022191,7]
[363881535,1748907059587,-373.158915,0.00022191,7]
[363881536,1748907059596,-280.23580309,0.00022191,7]
[363881537,1748907059607,-448.65,0.00022191,2]
[363881538,1748907059617,-171.0,0.00022192,7]
[363881539,1748907059626,-151.0,0.00022192,7]
[363881540,1748907059636,-6882.83653719,0.00022198,7]
[363881541,1748907059646,-6882.83653719,0.00022198,7]
[363881542,1748907059657,-151.0,0.00022198,7]
[363881543,1748907059666,-151.646121,0.00022198,7]
[363881544,1748907059676,-151.0,0.00022198,7]
[363881545,1748907059685,-163.04634,0.00022198,7]
[363881546,1748907059800,-163.04634,0.00022198,7]
[363881547,1748907059812,-151.0,0.00022198,7]
[363881548,1748907059822,-165.870742,0.00022198,7]
[363881549,1748907059832,-151.0,0.000222,6]
[363881550,1748907059841,-212.83419937,0.000222,3]
[363881551,1748907059851,-842.5625,0.000222,3]
[363881552,1748907059860,-12668.79298183,0.000222,3]
[363881553,1748907059869,-2164.39,0.000222,2]
[363881554,1748907059878,-1091.7,0.00022201,7]
[363881555,1748907059888,-1566.0,0.00022231,3]
[363881556,1748907059898,-935.33621332,0.00022231,3]
[363881557,1748907059908,-935.32117229,0.00022245,6]
[363881558,1748907059917,-151.0,0.00022288,23]
[363881559,1748907059927,-1091.7,0.00022301,2]
[363881560,1748907059936,-150.0,0.00022313,2]
[363881561,1748907059945,-150.0,0.00022313,2]
[363881562,1748907059956,-12500.0,0.0002232,2]
[363881563,1748907059965,-151.0,0.0002232,7]
[363881564,1748907059974,-755.772561,0.0002232,2]
[363881565,1748907059983,-755.772561,0.0002232,2]
[363881566,1748907059992,-150.325,0.00022331,2]
[363881567,1748907060002,-150.0,0.00022331,2]
[363881568,1748907060011,-150.0,0.00022331,2]
[363881569,1748907060020,-151.0,0.000224,10]
[363881570,1748907060030,-165.870742,0.000224,7]
[363881571,1748907060039,-165.870742,0.000224,7]
[363881572,1748907060049,-151.0,0.000224,7]
[363881573,1748907060059,-153.990891,0.000224,7]
[363881574,1748907060070,-263.040099,0.000224,7]
[363881575,1748907060080,-224.967987,0.000224,7]
[363881576,1748907060089,-224.967987,0.000224,7]
[363881577,1748907060099,-704.475619,0.000224,7]
[363881578,1748907060108,-704.475619,0.000224,7]
[363881579,1748907060118,-561.643759,0.000224,7]
[363881580,1748907060128,-561.643759,0.000224,7]
[363881581,1748907060137,-151.0,0.000224,7]
[363881582,1748907060147,-168.789138,0.000224,2]
[363881583,1748907060156,-168.789138,0.000224,2]
[363881584,1748907060166,-151.0,0.000224,7]
[363881585,1748907060175,-151.0,0.000224,7]
[363881586,1748907060185,-151.0,0.000224,7]
[363881587,1748907060194,-151.0,0.000224,7]
[363881588,1748907060204,-235.958102,0.000224,7]
[363881589,1748907060214,-207.8674,0.000224,7]
[363881590,1748907060225,-207.8674,0.000224,7]
[363881591,1748907060234,-206.847821,0.000224,7]
[363881592,1748907060244,-206.847821,0.000224,7]
[363881593,1748907060255,-369.208876,0.000224,7]
[363881594,1748907060265,-369.208876,0.000224,7]
[363881595,1748907060276,-412.842266,0.000224,7]
[363881596,1748907060286,-151.0,0.000224,7]
[363881597,1748907060296,-412.842266,0.000224,7]
[363881598,1748907060306,-1091.7,0.00022401,4]
[363881599,1748907060320,-472.990524,0.00022401,7]
[363881600,1748907060330,-472.990524,0.00022401,7]
[363881601,1748907060340,-286.129156,0.00022401,7]
[363881602,1748907060351,-286.129156,0.00022401,7]
[363881603,1748907060361,-373.158915,0.00022401,7]
[363881604,1748907060373,-373.158915,0.00022401,7]
[363881605,1748907060385,-935.32117229,0.00022452,7]
[363881606,1748907060395,-5094.70234244,0.00022458,2]
[363881607,1748907060405,-151.0,0.00022465,7]
[363881608,1748907060415,-151.0,0.00022465,7]
[363881609,1748907060424,-151.0,0.00022465,7]
[363881610,1748907060434,-500.0,0.00022465,2]
[363881611,1748907060445,-1240.54,0.00022465,2]
[363881612,1748907060455,-2050.09,0.00022465,2]
[363881613,1748907060465,-1442.81,0.00022465,2]
[363881614,1748907060475,-1440.95,0.00022465,2]
[363881615,1748907060484,-2167.57,0.00022465,2]
[363881616,1748907060494,-2580.32,0.00022465,2]
[363881617,1748907060505,-1026.87,0.00022465,2]
[363881618,1748907060514,-565.49,0.00022465,2]
[363881619,1748907060525,-802.81,0.00022465,2]
[363881620,1748907060536,-675.33,0.00022465,2]
[363881621,1748907060547,-504.7,0.00022465,2]
[363881622,1748907060557,-3944.08,0.00022465,2]
[363881623,1748907060571,-1686.91,0.00022465,2]
[363881624,1748907060581,-2043.01,0.00022465,2]
[363881625,1748907060591,-754.71,0.00022465,2]
[363881626,1748907060600,-797.96,0.00022465,2]
[363881627,1748907060610,-735.8,0.00022465,2]
[363881628,1748907060620,-4845.58,0.00022465,2]
[363881629,1748907060630,-854.6,0.00022465,2]
[363881630,1748907060640,-1199.73,0.00022465,2]
[363881631,1748907060650,-440.0,0.00022465,2]
[363881632,1748907060660,-440.0,0.00022465,2]
[363881633,1748907060670,-448.65,0.00022465,2]
[363881634,1748907060680,-352289.71625471,0.000225,60]
[363881635,1748907060808,-400.0,0.00016438,2]
[363881636,1748907060820,-248.26,0.00016438,2]
[363881637,1748907060830,-725.42,0.00016438,2]
[363881638,1748907060839,-440.0,0.00016438,2]
[363881639,1748907060849,-725.42,0.00016712,2]
[363881640,1748907060859,-725.42,0.00016986,2]
[363881641,1748907060868,-440.0,0.00017534,2]
[363881642,1748907060878,-440.0,0.00017808,2]
[363881643,1748907060888,-160.0,0.00017916,2]
[363881644,1748907060898,-440.0,0.00018082,2]
[363881645,1748907060907,-242.84,0.00018356,2]
[363881646,1748907060918,-421.365397,0.00021918,2]
[363881647,1748907060928,-13951.79763722,0.000225,60]
[363881648,1748907060939,-3699.379552,0.000225,60]
[363881649,1748907061049,-317.49,0.00016438,2]
[363881650,1748907061066,-122.51,0.00016438,2]
[363881651,1748907061076,-440.0,0.00016712,2]
[363881652,1748907061085,-725.42,0.0001726,2]
[363881653,1748907061095,-173.35117356,0.00017534,2]
[363881654,1748907061106,-430.0,0.00017534,2]
[363881658,1748907532391,272.944425,0.00013699,2]
[363881661,1748907854222,-159.05788085,0.00015643,2]
[363881663,1748907857015,-131.59749485,0.00015643,2]
[363881729,1748908232128,-311.05788085,0.00015792,2]
[363881731,1748908232139,-212.26524119,0.00016113,2]
[363881773,1748908238271,-356.06717881,0.00016113,2]
[363881774,1748908238281,-300.0,0.00016436,2]
[363881775,1748908238290,-500.0,0.00016437,2]
[363881776,1748908238299,-500.0,0.00016437,2]
[363881777,1748908238307,-500.0,0.00016437,2]
[363881778,1748908238317,-468.20885334,0.00016437,2]
[363881779,1748908238326,-500.0,0.00016437,2]
[363881780,1748908238335,-500.0,0.00016437,2]
[363881781,1748908238345,-500.0,0.00016437,2]
[363881782,1748908238354,-500.0,0.00016437,2]
[363881783,1748908238363,-500.0,0.00016437,2]
[363881784,1748908238371,-500.0,0.00016437,2]
[363881785,1748908238380,-500.0,0.00016437,2]
[363881786,1748908238390,-440.0,0.00016438,2]
[363881787,1748908238399,-430.0,0.00016438,2]
[363881788,1748908238408,-440.0,0.00016438,2]
[363881789,1748908238417,-440.0,0.00016438,2]
[363881790,1748908238427,-440.0,0.00016438,2]
[363881791,1748908238436,-440.0,0.00016438,2]
[363881792,1748908238446,-440.0,0.00016438,2]
[363881793,1748908238455,-500.0,0.00016438,2]
[363881794,1748908238465,-440.0,0.00016438,2]
[363881795,1748908238474,-440.0,0.00016438,2]
[363881796,1748908238482,-430.0,0.00016438,2]
[363881797,1748908238491,-397.33367671,0.00016438,2]
[363881798,1748908238500,-440.0,0.00016438,2]
[363881799,1748908238508,-500.0,0.00016438,2]
[363881800,1748908238517,-500.0,0.00016438,2]
[363881801,1748908238526,-440.0,0.00016438,2]
[363881802,1748908238535,-430.0,0.00016438,2]
[363881803,1748908238543,-254.78,0.00016438,2]
[363881804,1748908238551,-440.0,0.00016438,2]
[363881805,1748908238559,-440.0,0.00016438,2]
[363881806,1748908238568,-489.30605409,0.00016438,2]
[363881807,1748908238577,-440.0,0.00016438,2]
[363881808,1748908238584,-234.842215,0.00016438,2]
[363881809,1748908238592,-440.0,0.00016438,2]
[363881810,1748908238600,-440.0,0.00016438,2]
[363881811,1748908238607,-470.0,0.00016438,2]
[363881812,1748908238615,-440.0,0.00016438,2]
[363881813,1748908238624,-500.0,0.00016438,2]
[363881814,1748908238631,-500.0,0.00016438,2]
[363881815,1748908238639,-440.0,0.00016438,2]
[363881816,1748908238646,-440.0,0.00016438,2]
[363881817,1748908238655,-440.0,0.00016438,2]
[363881818,1748908238662,-430.0,0.00016438,2]
[363881819,1748908238669,-440.0,0.00016438,2]
[363881820,1748908238676,-440.0,0.00016438,2]
[363881821,1748908238684,-400.0,0.00016438,2]
[363881822,1748908238691,-221.85411967,0.00016438,2]
[363881823,1748908238698,-440.0,0.00016438,2]
[363881824,1748908238704,-440.0,0.00016438,2]
[363881825,1748908238711,-430.0,0.00016438,2]
[363881826,1748908238719,-400.0,0.00016438,2]
[363881827,1748908238727,-400.0,0.00016438,2]
[363881828,1748908238733,-440.0,0.00016438,2]
[363881829,1748908238740,-440.0,0.00016438,2]
[363881830,1748908238750,-430.0,0.00016438,2]
[363881831,1748908238760,-440.0,0.00016438,2]
[363881832,1748908238769,-430.0,0.00016438,2]
[363881833,1748908238779,-430.0,0.00016438,2]
[363881834,1748908238788,-440.0,0.00016438,2]
[363881835,1748908238798,-456.06,0.00016438,2]
[363881836,1748908238808,-400.0,0.00016438,2]
[363881837,1748908238818,-440.0,0.00016438,2]
[363881838,1748908238827,-440.0,0.00016438,2]
[363881839,1748908238837,-440.0,0.00016438,2]
[363881840,1748908238848,-440.0,0.00016438,2]
[363881841,1748908238858,-430.0,0.00016438,2]
[363881842,1748908238868,-440.0,0.00016438,2]
[363881843,1748908238878,-430.0,0.00016438,2]
[363881844,1748908238888,-400.0,0.00016438,2]
[363881845,1748908238898,-440.0,0.00016438,2]
[363881846,1748908238907,-400.0,0.00016438,2]
[363881847,1748908238917,-400.0,0.00016438,2]
[363881848,1748908238926,-440.0,0.00016438,2]
[363881849,1748908238935,-400.0,0.00016438,2]
[363881850,1748908238945,-440.0,0.00016438,2]
[363881851,1748908238954,-440.0,0.00016438,2]
[363881852,1748908238964,-440.0,0.00016438,2]
[363881853,1748908238973,-440.0,0.00016438,2]
[363881854,1748908238983,-440.0,0.00016438,2]
[363881855,1748908238992,-440.0,0.00016438,2]
[363881856,1748908239002,-440.0,0.00016438,2]
[363881857,1748908239012,-440.0,0.00016438,2]
[363881858,1748908239021,-400.0,0.00016438,2]
[363881859,1748908239031,-440.0,0.00016438,2]
[363881860,1748908239043,-440.0,0.00016438,2]
[363881861,1748908239052,-440.0,0.00016438,2]
[363881862,1748908239062,-470.0,0.00016438,2]
[363881863,1748908239071,-936.63,0.00016438,2]
[363881864,1748908239082,-440.0,0.00016438,2]
[363881865,1748908239091,-440.0,0.00016438,2]
[363881866,1748908239102,-440.0,0.00016438,2]
[363881867,1748908239111,-440.0,0.00016438,2]
[363881868,1748908239122,-1742.08,0.00016438,2]
[363881869,1748908239132,-982.29,0.00016438,2]
[363881870,1748908239141,-440.0,0.00016438,2]
[363881871,1748908239151,-440.0,0.00016438,2]
[363881872,1748908239161,-440.0,0.00016438,2]
[363881873,1748908239171,-400.0,0.00016438,2]
[363881874,1748908239181,-400.0,0.00016438,2]
[363881875,1748908239191,-440.0,0.00016438,2]
[363881876,1748908239201,-1815.34,0.00016438,2]
[363881877,1748908239210,-440.0,0.00016438,2]
[363881878,1748908239220,-440.0,0.00016438,2]
[363881879,1748908239229,-440.0,0.00016438,2]
[363881880,1748908239239,-440.0,0.00016438,2]
[363881881,1748908239248,-1150.29,0.00016438,2]
[363881882,1748908239258,-440.0,0.00016438,2]
[363881883,1748908239268,-440.0,0.00016438,2]
[363881884,1748908239277,-1357.83,0.00016438,2]
[363881885,1748908239287,-440.0,0.00016438,2]
[363881886,1748908239297,-425.28919822,0.00016438,2]
[363881887,1748908239307,-480.26799731,0.00016438,2]
[363881888,1748908239317,-510.0,0.00016438,2]
[363881889,1748908239328,-440.0,0.00016438,2]
[363881890,1748908239338,-400.0,0.00016438,2]
[363881891,1748908239349,-485.4,0.00016438,2]
[363881892,1748908239358,-380.0,0.00016438,2]
[363881893,1748908239369,-440.0,0.00016438,2]
[363881894,1748908239378,-440.0,0.00016438,2]
[363881895,1748908239389,-400.0,0.00016438,2]
[363881896,1748908239399,-702.48,0.00016438,2]
[363881897,1748908239408,-400.0,0.00016438,2]
[363881898,1748908239419,-440.0,0.00016438,2]
[363881899,1748908239429,-440.0,0.00016438,2]
[363881900,1748908239438,-415.95,0.00016438,2]
[363881901,1748908239449,-440.0,0.00016438,2]
[363881902,1748908239458,-400.0,0.00016438,2]
[363881903,1748908239467,-440.0,0.00016438,2]
[363881904,1748908239477,-440.0,0.00016438,2]
[363881905,1748908239641,-440.0,0.00016438,2]
[363881906,1748908239652,-430.0,0.00016438,2]
[363881907,1748908239662,-413.97626816,0.00016438,2]
[363881908,1748908239672,-440.0,0.00016438,2]
[363881909,1748908239682,-505.39,0.00016438,2]
[363881910,1748908239692,-440.0,0.00016438,2]
[363881911,1748908239702,-400.0,0.00016438,2]
[363881912,1748908239712,-572.96,0.00016438,2]
[363881913,1748908239721,-440.0,0.00016438,2]
[363881914,1748908239731,-440.0,0.00016438,2]
[363881915,1748908239740,-440.0,0.00016438,2]
[363881916,1748908239749,-440.0,0.00016438,2]
[363881917,1748908239759,-440.0,0.00016438,2]
[363881918,1748908239769,-440.0,0.00016438,2]
[363881920,1748908239779,-400.0,0.00016438,2]
[363881922,1748908239788,-440.0,0.00016438,2]
[363881924,1748908239798,-440.0,0.00016438,2]
[363881925,1748908239808,-440.0,0.00016438,2]
[363881926,1748908239818,-440.0,0.00016438,2]
[363881928,1748908239828,-440.0,0.00016438,2]
[363881930,1748908239838,-440.0,0.00016438,2]
[363881932,1748908239848,-440.0,0.00016438,2]
[363881934,1748908239857,-440.0,0.00016438,2]
[363881936,1748908239866,-440.0,0.00016438,2]
[363881938,1748908239876,-440.0,0.00016438,2]
[363881940,1748908239885,-440.0,0.00016438,2]
[363881942,1748908239895,-760.76,0.00016438,2]
[363881944,1748908239905,-440.0,0.00016438,2]
[363881946,1748908239914,-1684.5,0.00016438,2]
[363881947,1748908239924,-400.0,0.00016438,2]
[363881949,1748908239934,-440.0,0.00016438,2]
[363881951,1748908239943,-440.0,0.00016438,2]
[363881953,1748908239953,-597.33,0.00016438,2]
[363881955,1748908239963,-431.51226882,0.00016438,2]
[363881957,1748908239973,-440.0,0.00016438,2]
[363881960,1748908239983,-1420.11,0.00016438,2]
[363881961,1748908239992,-440.0,0.00016438,2]
[363881964,1748908240003,-191.37341072,0.00016438,2]
[363881966,1748908240013,-440.0,0.00016438,2]
[363881968,1748908240024,-440.0,0.00016438,2]
[363881970,1748908240034,-440.0,0.00016438,2]
[363881972,1748908240049,-440.0,0.00016438,2]
[363881973,1748908240059,-575.12192138,0.00016438,2]
[363881975,1748908240069,-440.0,0.00016438,2]
[363881978,1748908240079,-440.0,0.00016438,2]
[363881979,1748908240088,-430.0,0.00016438,2]
[363881982,1748908240101,-440.0,0.00016438,2]
[363881984,1748908240111,-440.0,0.00016438,2]
[363881986,1748908240120,-440.0,0.00016438,2]
[363881988,1748908240130,-440.0,0.00016438,2]
[363881989,1748908240139,-440.0,0.00016438,2]
[363881991,1748908240149,-440.0,0.00016438,2]
[363881993,1748908240159,-440.0,0.00016438,2]
[363881995,1748908240168,-440.0,0.00016438,2]
[363881997,1748908240178,-440.0,0.00016438,2]
[363881999,1748908240188,-440.0,0.00016438,2]
[363882000,1748908240198,-440.0,0.00016438,2]
[363882001,1748908240207,-398.05,0.00016438,2]
[363882002,1748908240218,-440.0,0.00016438,2]
[363882003,1748908240228,-430.0,0.00016438,2]
[363882004,1748908240238,-440.0,0.00016438,2]
[363882005,1748908240248,-440.0,0.00016438,2]
[363882006,1748908240258,-440.0,0.00016438,2]
[363882007,1748908240268,-500.0,0.0001671,2]
[363882008,1748908240278,-500.0,0.0001671,2]
[363882009,1748908240288,-259.22,0.00016711,2]
[363882010,1748908240298,-500.0,0.00016711,2]
[363882011,1748908240308,-489.19,0.00016711,2]
[363882012,1748908240318,-420.0,0.00016712,2]
[363882013,1748908240328,-440.0,0.00016712,2]
[363882014,1748908240338,-519.73102999,0.00016712,2]
[363882015,1748908240349,-420.0,0.00016712,2]
[363882016,1748908240359,-390.0,0.00016712,2]
[363882017,1748908240369,-440.0,0.00016712,2]
[363882018,1748908240379,-440.0,0.00016712,2]
[363882019,1748908240391,-440.0,0.00016712,2]
[363882020,1748908240402,-440.0,0.00016712,2]
[363882021,1748908240412,-440.0,0.00016712,2]
[363882022,1748908240423,-390.0,0.00016712,2]
[363882023,1748908240433,-440.0,0.00016712,2]
[363882024,1748908240442,-440.0,0.00016712,2]
[363882025,1748908240453,-248.15,0.00016712,2]
[363882026,1748908240463,-440.0,0.00016712,2]
[363882027,1748908240472,-420.0,0.00016712,2]
[363882028,1748908240483,-440.0,0.00016712,2]
[363882029,1748908240492,-440.0,0.00016712,2]
[363882030,1748908240502,-440.0,0.00016712,2]
[363882031,1748908240511,-440.0,0.00016712,2]
[363882032,1748908240521,-440.0,0.00016712,2]
[363882033,1748908240531,-440.0,0.00016712,2]
[363882034,1748908240540,-440.0,0.00016712,2]
[363882035,1748908240550,-446.78569142,0.00016712,2]
[363882036,1748908240560,-255.40745137,0.00016712,2]
[363882038,1748908240570,-440.0,0.00016712,2]
[363882039,1748908240580,-440.0,0.00016712,2]
[363882040,1748908240589,-440.0,0.00016712,2]
[363882041,1748908240600,-440.0,0.00016712,2]
[363882042,1748908240610,-440.0,0.00016712,2]
[363882043,1748908240620,-440.0,0.00016712,2]
[363882044,1748908240630,-557.40076255,0.00016712,2]
[363882045,1748908240639,-580.0,0.00016712,2]
[363882046,1748908240649,-420.0,0.00016712,2]
[363882047,1748908240659,-440.0,0.00016712,2]
[363882049,1748908240668,-540.0,0.00016712,2]
[363882050,1748908240678,-440.0,0.00016712,2]